bitfinex/quotes_ETHUSD_20240607
["timestamp","ask_amount","ask_price","bid_price","bid_amount"]
[1717785758137,0.272452,3670.3,3669.7,1.7557]
[1717785758402,2.72452,3670.4,3669.7,1.7557]
[1717785759675,3.0,3671.3,3669.8,1.39285466]
[1717785759865,2.72387,3671.3,3669.9,2.72482]
[1717785760073,2.72387,3671.3,3670.1,2.7247]
[1717785760311,2.72387,3671.3,3670.2,1.39285466]
[1717785760516,2.72387,3671.3,3670.3,2.72457]
[1717785760678,0.272338,3672.0,3670.5,2.7244]
[1717785760679,2.72357,3671.7,3670.5,2.7244]
[1717785760885,2.72357,3671.7,3670.7,2.72427]
[1717785761209,2.72357,3671.7,3670.8,1.39285466]
[1717785761597,2.72328,3672.1,3670.9,2.72411]
[1717785761793,2.72328,3672.1,3671.0,1.39285466]
[1717785762104,2.72328,3672.1,3671.1,2.72395]
[1717785762271,2.72328,3672.1,3671.3,2.7238]
[1717785762467,2.72328,3672.1,3671.4,1.39285466]
[1717785762672,4.99284,3673.1,3671.4,1.39285466]
[1717785762673,2.72298,3672.5,3671.4,1.39285466]
[1717785763215,1.56887271,3673.5,3671.3,2.7238]
[1717785763216,2.72237,3673.3,3672.0,2.72325]
[1717785763421,2.72237,3673.3,3672.3,2.72304]
[1717785763975,2.72237,3673.3,3672.0,1.39285466]
[1717785764198,0.347996,3673.7,3671.9,2.72337]
[1717785764199,2.72265,3672.9,3671.9,2.72337]
[1717785764409,2.72265,3672.9,3671.9,4.11622466]
[1717785764796,2.72265,3672.9,3671.6,1.7557]
[1717785764973,2.72265,3672.9,3671.7,1.39285466]
[1717785765497,2.72292,3672.6,3671.6,1.7557]
[1717785765701,0.272292,3672.5,3671.1,2.72397]
[1717785765874,2.7233,3672.1,3670.9,1.7557]
[1717785766074,2.72353,3671.8,3670.9,1.7557]
[1717785766336,2.72353,3671.8,3670.7,0.28410324]
[1717785766477,2.72353,3671.8,3670.7,1.6769579]
[1717785766676,2.995883,3671.8,3670.7,0.28410324]
[1717785766902,2.72374,3671.5,3670.7,0.28410324]
[1717785767273,0.272353,3671.8,3670.7,1.6769579]
[1717785767978,0.272353,3671.8,3670.8,4.11704466]
[1717785768177,2.7234,3671.9,3670.8,4.11704466]
[1717785768812,2.7234,3671.9,3670.8,2.72419]
[1717785770613,5.3458,3672.3,3670.7,0.28410324]
[1717785770815,2.72339,3671.9,3670.8,1.39285466]
[1717785770993,2.995729,3671.9,3670.8,1.39285466]
[1717785771194,2.72339,3671.9,3670.8,1.39285466]
[1717785771394,2.72339,3671.9,3670.9,2.72407]
[1717785771696,2.72339,3671.9,3670.9,4.11692466]
[1717785772782,2.72339,3671.9,3670.7,0.28410324]
[1717785772783,2.72309,3672.3,3671.1,2.72396]
[1717785773012,2.72309,3672.3,3671.3,2.72379]
[1717785773324,2.72309,3672.3,3671.4,1.39285466]
[1717785773534,2.72279,3672.7,3671.5,2.72367]
[1717785773815,2.72279,3672.7,3671.5,4.11652466]
[1717785773816,2.72306,3672.4,3671.5,4.11652466]
[1717785774799,2.72306,3672.4,3671.5,1.39285466]
[1717785775924,2.72306,3672.4,3671.1,2.72395]
[1717785776086,2.72306,3672.4,3671.2,1.39285466]
[1717785776292,3.0752379,3672.4,3671.2,1.39285466]
[1717785776707,2.72306,3672.4,3671.4,2.72375]
[1717785776947,2.72306,3672.4,3671.5,1.39285466]
[1717785777104,2.72306,3672.4,3671.5,1.44732148]
[1717785777642,2.72274,3672.8,3671.7,2.72352]
[1717785777819,2.72274,3672.8,3671.9,2.72332]
[1717785778023,2.72274,3672.8,3672.0,1.39285466]
[1717785778831,2.72274,3672.8,3671.5,2.72364]
[1717785779021,2.72274,3672.8,3671.7,2.7235]
[1717785779226,2.72274,3672.8,3671.8,1.39285466]
[1717785779852,2.72274,3672.8,3671.7,2.7235]
[1717785781137,2.72274,3672.8,3671.9,2.72337]
[1717785782240,2.72274,3672.8,3672.0,1.39285466]
[1717785783371,2.995014,3672.8,3672.0,1.39285466]
[1717785783738,2.72296,3672.5,3671.5,2.72364]
[1717785783938,2.72318,3672.2,3671.3,0.28416937]
[1717785784950,2.72342,3671.9,3671.3,0.28416937]
[1717785785123,2.995762,3671.9,3671.3,0.28416937]
[1717785785330,2.72342,3671.9,3671.3,0.28416937]
[1717785786074,2.72313,3672.3,3671.3,0.28416937]
[1717785786270,2.72313,3672.3,3671.4,2.72374]
[1717785788771,2.72278,3672.8,3671.8,2.566]
[1717785788990,2.72278,3672.8,3671.9,1.39285466]
[1717785789488,2.72245,3673.2,3671.9,4.11622466]
[1717785790360,2.72245,3673.2,3672.2,2.72313]
[1717785790561,2.72195,3673.9,3673.0,2.72253]
[1717785790861,0.75,3675.3,3672.2,4.11598466]
[1717785790862,2.72166,3674.3,3673.2,2.72239]
[1717785791171,2.72166,3674.3,3673.4,2.72226]
[1717785791328,2.72134,3674.7,3673.6,2.7221]
[1717785791533,2.72134,3674.7,3673.6,4.11495466]
[1717785791728,2.72134,3674.7,3673.7,1.39285466]
[1717785792170,2.72134,3674.7,3673.8,2.72196]
[1717785792371,2.72101,3675.1,3674.0,2.72181]
[1717785792535,0.2993096,3675.0,3674.1,1.39285466]
[1717785792736,2.72118,3674.9,3673.6,2.72211]
[1717785792998,0.2993096,3675.0,3672.9,1.7557]
[1717785792999,1.39285466,3674.8,3673.2,2.72241]
[1717785793195,2.72174,3674.2,3672.7,2.72271]
[1717785793333,2.72196,3673.9,3672.7,2.72271]
[1717785793537,2.72219,3673.6,3672.3,7.04478]
[1717785793774,2.72228,3673.4,3671.9,2.72338]
[1717785793994,2.72258,3673.0,3671.9,2.72338]
[1717785794144,2.72258,3673.0,3671.8,2.566]
[1717785794145,2.72226,3673.5,3672.5,2.72293]
[1717785794341,2.72226,3673.5,3672.5,4.11578466]
[1717785794565,2.7219,3673.9,3672.7,2.72275]
[1717785794765,2.7219,3673.9,3672.9,2.72262]
[1717785794963,2.7219,3673.9,3672.9,4.11547466]
[1717785795874,2.7216,3674.4,3673.1,2.72247]
[1717785796078,0.54085,3674.3,3673.2,1.39285466]
[1717785796837,2.72173,3674.2,3673.1,2.72247]
[1717785797071,0.54085,3674.3,3673.1,1.39285466]
[1717785797283,2.4085,3674.6,3673.1,1.39285466]
[1717785797780,1.39285466,3674.5,3672.9,2.72262]
[1717785797983,4.39285466,3674.5,3672.9,2.72262]
[1717785798195,2.7217,3674.2,3673.1,2.72248]
[1717785798390,2.7217,3674.2,3673.1,4.11533466]
[1717785798687,2.7217,3674.2,3673.2,1.39285466]
[1717785799743,2.7217,3674.2,3673.3,2.72232]
[1717785800104,2.7217,3674.2,3673.3,4.11517466]
[1717785801155,0.27217,3674.2,3672.7,1.7557]
[1717785801348,3.0,3674.5,3672.5,2.72293]
[1717785801544,2.72232,3673.4,3672.1,4.47889]
[1717785801786,2.72166,3674.3,3672.2,1.39285466]
[1717785801787,2.72253,3673.1,3672.2,1.39285466]
[1717785801945,2.72253,3673.1,3672.1,2.72319]
[1717785803118,2.72253,3673.1,3672.2,1.39285466]
[1717785803327,2.72253,3673.1,3672.3,2.72302]
[1717785803610,2.72253,3673.1,3672.3,4.11587466]
[1717785804516,3.0,3674.1,3672.5,2.72287]
[1717785804517,2.72217,3673.6,3672.5,2.72287]
[1717785804673,2.72217,3673.6,3672.6,1.39285466]
[1717785806174,2.72217,3673.6,3672.7,2.72274]
[1717785806374,3.02184,3674.0,3672.8,1.39285466]
[1717785806618,2.72184,3674.0,3672.9,2.72261]
[1717785806774,2.72184,3674.0,3673.0,1.39285466]
[1717785807174,2.72184,3674.0,3673.1,2.72247]
[1717785807374,2.72184,3674.0,3673.1,4.11532466]
[1717785807836,2.72156,3674.4,3673.3,2.72233]
[1717785807981,2.72119,3674.9,3673.6,2.72208]
[1717785808170,2.72119,3674.9,3673.7,1.39285466]
[1717785809126,2.3964,3675.2,3673.0,2.566]
[1717785809287,2.7211,3675.0,3673.2,2.72237]
[1717785809487,1.39285466,3674.9,3673.2,2.72237]
[1717785810037,1.39285466,3674.9,3671.8,1.91791764]
[1717785810038,2.72222,3673.5,3672.5,2.566]
[1717785810418,2.72222,3673.5,3672.6,2.72286]
[1717785810582,2.72222,3673.5,3672.5,3.95885466]
[1717785810583,2.72193,3673.9,3672.7,1.39285466]
[1717785811002,2.72193,3673.9,3672.8,2.72269]
[1717785811197,2.994123,3673.9,3672.9,1.39285466]
[1717785811725,2.72193,3673.9,3673.0,2.72255]
[1717785812024,2.72193,3673.9,3673.1,1.39285466]
[1717785813304,3.0,3674.6,3673.1,1.39285466]
[1717785813505,2.72161,3674.3,3673.2,2.72235]
[1717785813703,2.993771,3674.3,3673.4,2.72223]
[1717785814022,2.993771,3674.3,3673.4,4.11508466]
[1717785814023,2.72161,3674.3,3673.4,4.11508466]
[1717785815239,2.3833,3674.8,3672.5,2.83625038]
[1717785815411,1.39285466,3674.7,3672.6,1.39285466]
[1717785815613,2.72138,3674.6,3672.6,4.11567466]
[1717785815819,2.72203,3673.8,3672.6,4.11567466]
[1717785816128,2.72222,3673.5,3672.6,4.11567466]
[1717785816660,0.272203,3673.8,3672.4,0.28348463]
[1717785816661,2.72245,3673.2,3672.4,0.28348463]
[1717785816800,2.72271,3672.9,3672.4,0.28348463]
[1717785817923,2.72289,3672.6,3672.4,0.28348463]
[1717785824555,2.3421,3674.2,3672.4,1.67633929]
[1717785824761,2.72193,3673.9,3672.6,2.566]
[1717785825067,2.3421,3674.2,3672.5,2.72289]
[1717785825068,2.72239,3673.3,3672.5,2.72289]
[1717785826244,2.72208,3673.7,3672.7,2.72275]
[1717785826433,2.72208,3673.7,3672.7,4.11560466]
[1717785828429,2.72225,3673.5,3672.6,2.566]
[1717785828633,2.72225,3673.5,3672.5,0.28264414]
[1717785828830,2.72225,3673.5,3672.5,1.6754988]
[1717785829034,2.72225,3673.5,3672.6,2.72283]
[1717785829762,2.72192,3673.9,3672.8,2.72271]
[1717785829948,2.72163,3674.3,3673.0,2.72252]
[1717785830158,2.72163,3674.3,3673.2,2.7224]
[1717785830367,2.72163,3674.3,3673.5,2.72219]
[1717785831632,2.72123,3674.8,3673.7,2.72201]
[1717785831829,2.72123,3674.8,3673.9,2.72188]
[1717785832031,2.72093,3675.3,3674.0,1.39285466]
[1717785832388,2.72093,3675.3,3674.1,2.7217]
[1717785832523,0.28428776,3675.2,3674.2,1.39285466]
[1717785834053,0.28428776,3675.2,3674.3,2.72155]
[1717785834366,2.72093,3675.3,3674.4,1.39285466]
[1717785835264,1.66494766,3675.3,3673.5,0.35306795]
[1717785835475,2.4743,3675.2,3673.5,1.39285466]
[1717785836062,2.72138,3674.7,3673.5,1.39285466]
[1717785836268,2.7218,3674.1,3673.0,2.72255]
[1717785836440,2.7218,3674.1,3673.1,1.39285466]
[1717785836968,2.72147,3674.5,3673.3,2.72233]
[1717785837127,2.72147,3674.5,3673.3,4.11518466]
[1717785838829,2.72147,3674.5,3673.5,2.72215]
[1717785839166,2.72147,3674.5,3673.7,2.72204]
[1717785839326,2.72118,3674.9,3673.8,1.39285466]
[1717785839777,0.008,3675.6,3674.2,2.72163]
[1717785839778,2.72088,3675.3,3674.2,2.72163]
[1717785839930,2.72088,3675.3,3674.4,2.72152]
[1717785840286,2.72088,3675.3,3674.5,1.39285466]
[1717785840457,2.7206,3675.7,3674.6,2.72135]
[1717785841685,2.72076,3675.5,3674.1,2.72168]
[1717785841849,2.72096,3675.2,3674.1,2.72168]
[1717785842045,2.72096,3675.2,3673.6,2.72207]
[1717785842252,2.72096,3675.2,3673.7,1.39285466]
[1717785842646,2.72123,3674.9,3673.6,2.72207]
[1717785842847,1.39285466,3675.2,3673.6,2.72207]
[1717785842848,2.72141,3674.6,3673.6,2.72207]
[1717785843150,2.72141,3674.6,3673.1,2.72245]
[1717785843382,2.72141,3674.6,3673.2,1.39285466]
[1717785843604,5.07728,3674.2,3672.7,0.28272875]
[1717785843751,2.72197,3673.9,3672.7,1.67558341]
[1717785844290,2.72197,3673.9,3672.7,0.28272875]
[1717785844655,2.72218,3673.6,3672.7,0.28272875]
[1717785846647,2.72244,3673.2,3672.7,0.28272875]
[1717785846848,0.272244,3673.1,3672.7,0.28272875]
[1717785847052,3.507728,3674.1,3672.7,0.28272875]
[1717785847350,2.72237,3673.3,3672.7,0.28272875]
[1717785848166,2.72205,3673.7,3672.7,0.28272875]
[1717785848361,2.3556,3674.2,3672.7,0.28272875]
[1717785848362,5.07728,3674.2,3672.8,1.39285466]
[1717785848566,2.72168,3674.2,3672.9,2.566]
[1717785848783,2.72168,3674.2,3673.1,2.72242]
[1717785848953,2.72168,3674.2,3673.3,2.72232]
[1717785849292,2.72168,3674.2,3673.3,4.11517466]
[1717785849497,2.72168,3674.2,3673.3,2.72232]
[1717785850483,2.72138,3674.7,3673.4,1.39285466]
[1717785851070,2.72138,3674.7,3673.5,2.72213]
[1717785851268,2.72138,3674.7,3673.5,4.11498466]
[1717785852895,0.513518,3674.6,3673.5,4.11498466]
[1717785853095,2.72183,3674.0,3672.9,0.28296977]
[1717785854175,2.72183,3674.0,3673.0,4.11538466]
[1717785854702,2.72911,3675.0,3673.2,1.39285466]
[1717785855003,2.72111,3675.0,3673.9,2.72184]
[1717785855296,2.72082,3675.4,3674.3,2.72157]
[1717785855499,2.72082,3675.4,3674.4,1.39285466]
[1717785855828,0.008,3675.9,3674.7,2.566]
[1717785855829,2.72052,3675.8,3674.7,2.566]
[1717785856114,2.72052,3675.8,3674.5,2.72144]
[1717785856315,2.72052,3675.8,3674.5,4.11429466]
[1717785857281,2.993372,3675.8,3674.5,4.11429466]
[1717785857465,2.4914,3675.6,3673.6,1.7557]
[1717785857690,2.72106,3675.1,3674.0,2.72177]
[1717785857903,2.72106,3675.1,3673.7,1.39285466]
[1717785857904,2.72074,3675.5,3674.2,2.72166]
[1717785858068,2.72086,3675.3,3674.2,4.11451466]
[1717785858261,2.72086,3675.3,3674.2,2.72166]
[1717785859617,2.72086,3675.3,3674.3,1.39285466]
[1717785860110,0.522014,3675.4,3674.4,2.72152]
[1717785860313,2.4914,3675.6,3674.5,1.39285466]
[1717785860966,2.7206,3675.7,3674.6,2.72137]
[1717785861877,0.008,3676.1,3674.9,2.566]
[1717785862085,2.72027,3676.2,3675.0,1.39285466]
[1717785862607,2.993097,3676.2,3675.0,1.39285466]
[1717785862810,2.993097,3676.2,3675.2,2.72088]
[1717785863117,2.72046,3675.9,3674.7,1.7557]
[1717785863275,2.72046,3675.9,3674.7,1.39285466]
[1717785863476,2.72057,3675.7,3674.8,2.7212]
[1717785864307,2.72057,3675.7,3674.4,5.28749]
[1717785864508,2.72057,3675.7,3674.5,1.39285466]
[1717785864876,2.72083,3675.4,3674.5,1.39285466]
[1717785865271,2.72083,3675.4,3674.1,1.7557]
[1717785865475,2.992913,3675.4,3674.2,1.39285466]
[1717785866189,2.72104,3675.1,3674.2,1.39285466]
[1717785867185,2.72126,3674.8,3673.6,1.7557]
[1717785867386,2.72095,3675.2,3673.9,2.566]
[1717785867588,2.72068,3675.6,3674.4,5.28749]
[1717785867789,3.0,3676.1,3674.4,5.28749]
[1717785867790,2.72838,3676.0,3674.7,1.7557]
[1717785868073,3.0,3676.1,3674.5,1.39285466]
[1717785868074,3.0,3676.1,3674.5,4.11429466]
[1717785868305,0.008,3676.2,3674.5,4.11429466]
[1717785868507,0.25035,3676.2,3674.5,4.11429466]
[1717785868711,2.72063,3675.7,3674.8,2.7212]
[1717785868917,2.72063,3675.7,3674.9,1.39285466]
[1717785869079,2.72063,3675.7,3674.8,2.7212]
[1717785870225,2.72063,3675.7,3674.4,5.2875]
[1717785870397,2.72063,3675.7,3674.5,1.39285466]
[1717785872475,2.72063,3675.7,3674.6,2.72136]
[1717785872676,2.72063,3675.7,3674.6,4.11421466]
[1717785872932,0.008,3676.1,3674.6,1.39285466]
[1717785873108,2.72082,3675.4,3674.6,1.39285466]
[1717785873293,2.72082,3675.4,3674.4,2.72149]
[1717785873494,2.72082,3675.4,3674.5,1.39285466]
[1717785875018,2.72082,3675.4,3674.6,2.72135]
[1717785875179,2.72082,3675.4,3674.7,1.39285466]
[1717785876236,2.72082,3675.4,3674.6,2.72135]
[1717785876535,2.72082,3675.4,3674.6,4.11420466]
[1717785877405,2.72082,3675.4,3674.6,1.39285466]
[1717785877815,2.72082,3675.4,3674.7,2.72128]
[1717785878113,2.72053,3675.8,3674.9,5.28714]
[1717785879115,2.72053,3675.8,3674.9,6.67999466]
[1717785879983,2.72826,3676.2,3675.1,2.72095]
[1717785880324,3.542636,3676.2,3675.1,4.11380466]
[1717785881428,3.542636,3676.2,3674.4,0.28340926]
[1717785881429,1.39285466,3676.1,3674.4,0.28340926]
[1717785881613,2.7209,3675.3,3674.4,0.28340926]
[1717785881781,2.4838,3675.4,3674.4,0.28340926]
[1717785882004,0.24838,3675.3,3674.4,0.28340926]
[1717785882204,1.64123466,3675.3,3674.4,0.28340926]
[1717785882408,4.64123466,3675.3,3674.4,0.28340926]
[1717785882607,2.72136,3674.7,3674.4,0.28340926]
[1717785883420,2.72145,3674.5,3674.4,0.28340926]
[1717785883616,8.632595,3674.5,3674.4,0.28340926]
[1717785883821,2.72184,3674.0,3673.0,2.7225]
[1717785884023,2.72184,3674.0,3673.1,1.39285466]
[1717785884230,2.72184,3674.0,3673.1,1.67619742]
[1717785884537,2.72184,3674.0,3673.1,0.28334276]
[1717785884733,0.272184,3673.9,3673.1,0.28334276]
[1717785885199,2.72198,3673.8,3673.1,0.28334276]
[1717785887048,2.72198,3673.8,3673.1,1.67619742]
[1717785887542,2.72169,3674.2,3673.2,1.39285466]
[1717785888105,2.72118,3674.9,3673.7,2.72204]
[1717785888357,2.72146,3674.5,3673.5,2.566]
[1717785888534,2.72146,3674.5,3673.6,4.11492466]
[1717785889048,2.72117,3674.9,3673.6,4.11492466]
[1717785891567,3.008,3675.5,3673.5,2.566]
[1717785891568,2.7208,3675.4,3674.0,2.72182]
[1717785891867,3.008,3675.5,3674.1,1.39285466]
[1717785891868,2.72105,3675.1,3674.1,1.39285466]
[1717785892654,2.72079,3675.4,3674.3,2.72155]
[1717785892880,2.72079,3675.4,3674.5,2.7214]
[1717785893173,2.72079,3675.4,3674.5,4.11425466]
[1717785893455,2.4008,3675.7,3674.5,4.11425466]
[1717785894659,2.4008,3675.7,3674.8,2.72123]
[1717785894861,2.72049,3675.9,3674.8,2.72123]
[1717785895742,0.008,3676.2,3674.9,1.39285466]
[1717785895943,0.008,3676.6,3676.0,2.72031]
[1717785896148,0.008,3677.0,3676.0,2.72031]
[1717785896336,0.43087939,3676.9,3676.0,2.72031]
[1717785897922,4.97352,3676.8,3675.6,2.72062]
[1717785898163,4.98152,3676.8,3675.6,2.72062]
[1717785898330,2.71996,3676.6,3675.2,2.72091]
[1717785898530,2.72796,3676.6,3675.2,2.72091]
[1717785898730,2.72013,3676.3,3675.2,2.72091]
[1717785898963,3.0,3676.2,3675.2,2.72091]
[1717785899351,3.0,3676.2,3674.8,2.72121]
[1717785899352,2.72032,3676.1,3674.8,2.72121]
[1717785899550,3.0,3676.2,3675.1,2.72099]
[1717785899739,0.008,3676.4,3675.1,4.11384466]
[1717785899937,0.6526106,3676.3,3675.4,2.72075]
[1717785900647,0.798166,3676.5,3675.7,2.72055]
[1717785900847,0.798166,3676.5,3675.3,2.72085]
[1717785901470,2.72794,3676.6,3675.5,2.72067]
[1717785901646,0.008,3676.7,3675.5,4.11352466]
[1717785901848,0.008,3676.8,3675.8,2.72045]
[1717785902073,0.008,3676.9,3676.0,2.7203]
[1717785902249,2.72763,3677.0,3675.8,4.11330466]
[1717785902459,2.72763,3677.0,3675.5,2.566]
[1717785902460,1.89899766,3676.9,3675.4,2.72076]
[1717785902660,0.008,3676.8,3675.4,2.72076]
[1717785903167,2.72002,3676.5,3675.4,2.72076]
[1717785903689,0.008,3676.6,3675.8,2.72047]
[1717785903978,0.498143,3676.9,3675.8,2.72047]
[1717785903979,2.71977,3676.8,3675.8,2.72047]
[1717785904204,3.6423613,3676.8,3675.8,2.72047]
[1717785904543,0.008,3676.9,3675.8,2.72047]
[1717785904743,0.008,3677.0,3675.8,2.72047]
[1717785905568,2.71973,3676.9,3676.0,2.72028]
[1717785906403,0.008,3677.0,3676.0,2.72028]
[1717785906551,0.008,3677.1,3676.0,2.72028]
[1717785906751,0.806122,3677.1,3676.0,2.72028]
[1717785906997,2.72763,3677.0,3675.7,2.566]
[1717785907289,2.71982,3676.8,3675.6,2.72059]
[1717785907785,2.72782,3676.8,3675.6,2.72059]
[1717785908189,2.72782,3676.8,3675.8,2.72047]
[1717785908370,0.798122,3677.1,3675.8,2.72047]
[1717785908371,2.71992,3676.6,3675.8,2.72047]
[1717785908569,2.71992,3676.6,3675.4,2.72074]
[1717785908769,0.008,3676.7,3675.8,2.72045]
[1717785909008,0.008,3676.9,3676.5,2.71995]
[1717785909239,0.008,3677.4,3676.5,2.71995]
[1717785909702,0.008,3677.4,3676.5,4.11280466]
[1717785910366,2.72734,3677.4,3676.0,2.72028]
[1717785910565,2.72754,3677.1,3675.6,2.72063]
[1717785910760,2.71977,3676.8,3675.6,4.11348466]
[1717785911076,2.72005,3676.4,3675.1,2.72094]
[1717785911294,1.39285466,3676.3,3674.1,2.566]
[1717785911468,2.4446,3675.6,3673.7,2.566]
[1717785911665,0.24446,3675.5,3673.7,2.566]
[1717785911907,3.24446,3675.5,3674.0,2.72182]
[1717785912326,2.72116,3675.0,3673.7,2.566]
[1717785912725,2.72116,3675.0,3673.9,2.72188]
[1717785913007,5.9652,3675.5,3674.3,2.7216]
[1717785913203,2.72099,3675.2,3673.8,2.7219]
[1717785913714,0.008,3675.9,3674.5,2.0389664]
[1717785913914,0.008,3676.4,3675.2,5.28691]
[1717785914110,2.71989,3676.7,3675.2,5.28691]
[1717785914312,0.008,3676.6,3675.2,5.28691]
[1717785914721,0.008,3676.6,3675.5,2.7207]
[1717785914923,0.008,3676.9,3675.8,2.566]
[1717785915126,0.008,3677.0,3676.1,2.72025]
[1717785915401,1.17646628,3680.6,3675.8,2.566]
[1717785915402,0.008,3677.1,3676.3,2.72012]
[1717785915608,0.008,3677.3,3676.3,4.11297466]
[1717785915842,0.008,3677.3,3676.3,6.67897466]
[1717785916208,0.008,3677.3,3676.3,2.72012]
[1717785916608,2.72742,3677.3,3676.3,2.72012]
[1717785916842,0.280742,3677.2,3676.3,2.72012]
[1717785917427,0.008,3677.2,3676.3,2.72012]
[1717785917941,0.008,3677.2,3676.3,4.11297466]
[1717785918152,2.71905,3677.8,3676.6,2.71987]
[1717785918153,0.008,3677.4,3676.6,2.71987]
[1717785918444,0.008,3677.4,3676.8,2.71972]
[1717785918651,2.71868,3678.3,3676.8,2.71972]
[1717785918652,0.008,3677.7,3676.8,2.71972]
[1717785919437,2.72719,3677.6,3676.3,2.72007]
[1717785919767,0.008,3677.3,3676.3,2.72007]
[1717785920339,0.008,3677.3,3676.4,1.39285466]
[1717785920555,0.008,3677.3,3676.3,2.72007]
[1717785920981,0.580719,3677.3,3676.3,2.72007]
[1717785921206,2.72748,3677.2,3676.3,2.72007]
[1717785921507,2.72748,3677.2,3676.4,1.39285466]
[1717785921775,0.008,3677.2,3676.5,2.71996]
[1717785921979,0.008,3677.4,3676.5,4.11281466]
[1717785922185,0.008,3677.4,3676.8,2.71969]
[1717785922336,30.0,3678.0,3676.8,2.71969]
[1717785922337,0.008,3677.6,3676.9,1.39285466]
[1717785922545,0.008,3677.6,3677.0,2.7196]
[1717785922779,0.008,3677.7,3677.0,2.7196]
[1717785923166,0.008,3677.6,3677.0,2.7196]
[1717785923356,2.72722,3677.6,3676.4,2.72]
[1717785923694,0.008,3677.3,3676.6,2.71986]
[1717785923849,0.008,3677.4,3676.6,2.71986]
[1717785924050,0.008,3677.4,3676.8,2.71973]
[1717785924279,0.008,3677.6,3676.9,1.39285466]
[1717785924588,0.008,3677.6,3676.4,2.72004]
[1717785924887,2.72736,3677.4,3676.4,2.72004]
[1717785925101,0.008,3677.3,3676.4,2.72004]
[1717785925435,0.008,3677.3,3675.7,1.7557]
[1717785925436,2.71956,3677.1,3675.9,2.72038]
[1717785925762,2.71956,3677.1,3675.7,1.7557]
[1717785925763,0.008,3677.0,3676.1,2.72024]
[1717785925957,2.72756,3677.1,3676.1,2.72024]
[1717785926284,0.272756,3677.0,3676.1,2.72024]
[1717785926479,2.7197,3676.9,3675.7,2.72054]
[1717785926691,2.7277,3676.9,3675.8,1.39285466]
[1717785926882,2.7277,3676.9,3675.7,2.72054]
[1717785927251,2.71997,3676.5,3675.7,2.72054]
[1717785927450,2.72015,3676.3,3675.6,0.28302778]
[1717785929151,0.008,3676.6,3675.7,1.39285466]
[1717785929354,0.008,3677.0,3675.7,1.39285466]
[1717785929759,0.008,3677.0,3676.0,2.72029]
[1717785930091,0.008,3677.0,3676.0,4.11314466]
[1717785930092,2.71961,3677.0,3676.0,4.11314466]
[1717785930302,2.71989,3676.7,3675.6,3.00364778]
[1717785930468,2.72017,3676.3,3675.6,0.28302778]
[1717785930654,0.008,3676.6,3675.6,0.28302778]
[1717785930855,2.72039,3676.0,3675.6,0.28302778]
[1717785931066,2.72007,3676.4,3675.6,0.28302778]
[1717785931379,2.72023,3676.2,3675.6,0.28302778]
[1717785931560,0.572023,3676.1,3675.6,0.28302778]
[1717785932420,2.72038,3676.0,3675.6,0.28302778]
[1717785932910,0.572023,3676.1,3675.6,0.28302778]
[1717785933127,3.0,3676.4,3675.6,0.28302778]
[1717785933414,3.008,3676.7,3675.7,2.72055]
[1717785933599,3.0,3676.7,3676.0,2.72031]
[1717785933771,0.3008,3676.7,3676.0,2.72031]
[1717785933967,3.0,3676.7,3676.0,2.72031]
[1717785934416,2.72774,3676.9,3675.6,3.00364778]
[1717785934599,3.008,3676.8,3675.6,3.00364778]
[1717785935106,3.008,3676.8,3675.9,2.72037]
[1717785935310,3.0,3676.8,3675.9,2.72037]
[1717785935606,0.008,3676.9,3676.5,2.7199]
[1717785935807,2.72735,3677.4,3676.5,2.7199]
[1717785935971,0.280735,3677.3,3676.5,2.7199]
[1717785936171,0.008,3677.3,3676.5,2.7199]
[1717785936776,0.008,3677.3,3676.6,1.39285466]
[1717785936980,0.008,3677.4,3676.8,2.71972]
[1717785937197,0.008,3677.6,3676.8,4.11257466]
[1717785938106,0.008,3677.6,3677.4,2.7193]
[1717785938403,0.008,3677.8,3677.4,2.7193]
[1717785939670,0.008,3677.8,3676.6,1.7557]
[1717785939671,0.008,3677.8,3677.6,2.71916]
[1717785939865,0.008,3677.9,3677.6,2.71916]
[1717785940110,1.52343426,3677.9,3677.6,2.71916]
[1717785940406,0.008,3677.8,3677.2,2.71942]
[1717785940580,30.0,3678.0,3677.8,2.71901]
[1717785940781,29.743986,3678.0,3677.9,1.39285466]
[1717785940981,27.63430087,3678.0,3677.9,1.39285466]
[1717785941303,27.37430087,3678.0,3677.9,1.39285466]
[1717785942971,27.37430087,3678.0,3677.8,2.71901]
[1717785945880,27.37430087,3678.0,3677.4,2.7193]
[1717785946877,30.02460632,3678.0,3677.0,2.7196]
[1717785949396,32.74351632,3678.0,3677.0,2.7196]
[1717785949915,32.74351632,3678.0,3676.6,0.2828891]
[1717785950113,2.71903,3677.8,3676.6,0.2828891]
[1717785950284,2.71903,3677.8,3676.7,1.39285466]
[1717785950816,2.7192,3677.6,3676.6,0.2828891]
[1717785951826,4.26476563,3677.8,3676.6,1.67574376]
[1717785951984,2.71917,3677.6,3676.6,0.2828891]
[1717785952392,2.71935,3677.4,3676.6,0.2828891]
[1717785952714,0.571935,3677.3,3676.6,0.2828891]
[1717785952915,2.2656,3676.9,3676.6,0.2828891]
[1717785953120,2.71975,3676.8,3676.6,0.2828891]
[1717785953325,4.39285466,3676.7,3676.6,0.2828891]
[1717785953533,5.33067513,3676.7,3675.3,0.008]
[1717785953728,2.72032,3676.1,3674.1,2.566]
[1717785953909,2.71998,3676.5,3675.4,2.72074]
[1717785954229,2.71998,3676.5,3674.9,2.72111]
[1717785954230,2.72027,3676.1,3674.9,2.72111]
[1717785954411,2.72027,3676.1,3675.3,2.72083]